[Event "*** Titled Tuesday Blitz"]
[Site "Chess.com"]
[Date "2020.04.07"]
[Round "2"]
[White "AshotParvanyan"]
[Black "garfield_pg"]
[Result "0-1"]
[WhiteElo "2534"]
[BlackElo "2225"]
[TimeControl "180+1"]
[EndTime "13:22:12 PDT"]
[Termination "garfield_pg won on time"]

1. d4 {[%clk 0:03:00.9]} 1... Nf6 {[%clk 0:02:59.3]} 2. Nf3 {[%clk 0:03:01.3]}
2... g6 {[%clk 0:02:59.7]} 3. c4 {[%clk 0:03:01.7]} 3... Bg7 {[%clk 0:03:00.2]}
4. e3 {[%clk 0:03:01]} 4... O-O {[%clk 0:03:00.2]} 5. Be2 {[%clk 0:03:01.4]}
5... c5 {[%clk 0:03:00.8]} 6. d5 {[%clk 0:03:00.2]} 6... d6 {[%clk 0:03:00.5]}
7. O-O {[%clk 0:03:00]} 7... Bg4 {[%clk 0:02:58.9]} 8. Nc3 {[%clk 0:02:59.8]}
8... a6 {[%clk 0:02:50.8]} 9. a4 {[%clk 0:02:59]} 9... Qa5 {[%clk 0:02:49.6]}
10. Nd2 {[%clk 0:02:53.8]} 10... Bxe2 {[%clk 0:02:48.8]} 11. Qxe2 {[%clk
0:02:54.7]} 11... b5 {[%clk 0:02:46.3]} 12. cxb5 {[%clk 0:02:41.8]} 12... axb5
{[%clk 0:02:45.2]} 13. Nxb5 {[%clk 0:02:37.6]} 13... Nxd5 {[%clk 0:02:36.3]} 14.
Nc4 {[%clk 0:02:33.8]} 14... Qd8 {[%clk 0:02:21.1]} 15. a5 {[%clk 0:02:21.4]}
15... Nc6 {[%clk 0:02:03.6]} 16. Bd2 {[%clk 0:02:15.7]} 16... Ndb4 {[%clk
0:01:58.6]} 17. Bc3 {[%clk 0:01:46.4]} 17... Nxa5 {[%clk 0:01:52.4]} 18. Nd2
{[%clk 0:01:41.4]} 18... Qb6 {[%clk 0:01:44.1]} 19. Na3 {[%clk 0:01:33.6]} 19...
Nd5 {[%clk 0:01:36]} 20. Bxg7 {[%clk 0:01:31.3]} 20... Kxg7 {[%clk 0:01:34.7]}
21. Qd3 {[%clk 0:01:28.1]} 21... Nf6 {[%clk 0:01:30]} 22. Qc3 {[%clk 0:01:19.1]}
22... Qb4 {[%clk 0:01:25.2]} 23. Rfc1 {[%clk 0:01:13.3]} 23... Qxc3 {[%clk
0:01:19.8]} 24. bxc3 {[%clk 0:01:11.9]} 24... Rfb8 {[%clk 0:01:18.5]} 25. Rcb1
{[%clk 0:01:02.1]} 25... Nd5 {[%clk 0:01:15.7]} 26. Nb5 {[%clk 0:00:52.6]} 26...
Nc6 {[%clk 0:01:09.6]} 27. c4 {[%clk 0:00:52.3]} 27... Ndb4 {[%clk 0:01:05.8]}
28. Kf1 {[%clk 0:00:42]} 28... Nc2 {[%clk 0:01:00.3]} 29. Rxa8 {[%clk
0:00:40.7]} 29... Rxa8 {[%clk 0:01:01.2]} 30. Ke2 {[%clk 0:00:40.5]} 30... N2b4
{[%clk 0:00:49.1]} 31. Nc3 {[%clk 0:00:32.7]} 31... Ra3 {[%clk 0:00:47]} 32. Nd5
{[%clk 0:00:30.8]} 32... Nxd5 {[%clk 0:00:46.1]} 33. cxd5 {[%clk 0:00:31.7]}
33... Nb4 {[%clk 0:00:46.8]} 34. e4 {[%clk 0:00:31.8]} 34... f5 {[%clk
0:00:44.9]} 35. f3 {[%clk 0:00:28.8]} 35... Ra2 {[%clk 0:00:43.6]} 36. Rb3
{[%clk 0:00:21.2]} 36... Kf6 {[%clk 0:00:35.3]} 37. Kd1 {[%clk 0:00:19.2]} 37...
Ra1+ {[%clk 0:00:33.5]} 38. Ke2 {[%clk 0:00:19.4]} 38... Rg1 {[%clk 0:00:32.5]}
39. Kf2 {[%clk 0:00:18.6]} 39... Ra1 {[%clk 0:00:28.4]} 40. Nc4 {[%clk
0:00:17.1]} 40... Ra2+ {[%clk 0:00:25.9]} 41. Kg3 {[%clk 0:00:17.1]} 41... f4+
{[%clk 0:00:21.2]} 42. Kxf4 {[%clk 0:00:16.9]} 42... Rxg2 {[%clk 0:00:21.7]} 43.
Nb6 {[%clk 0:00:15.8]} 43... g5+ {[%clk 0:00:17.7]} 44. Ke3 {[%clk 0:00:15.3]}
44... Nc2+ {[%clk 0:00:18.1]} 45. Kd3 {[%clk 0:00:14.6]} 45... Nd4 {[%clk
0:00:18.5]} 46. Nd7+ {[%clk 0:00:14]} 46... Kf7 {[%clk 0:00:17.5]} 47. Rb8
{[%clk 0:00:14.3]} 47... Kg7 {[%clk 0:00:10.7]} 48. Re8 {[%clk 0:00:13.6]} 48...
Nxf3 {[%clk 0:00:09.6]} 49. Rxe7+ {[%clk 0:00:13.3]} 49... Kg6 {[%clk
0:00:09.8]} 50. Re6+ {[%clk 0:00:10.3]} 50... Kf7 {[%clk 0:00:10.3]} 51. Rxd6
{[%clk 0:00:09.3]} 51... Ke7 {[%clk 0:00:10.4]} 52. e5 {[%clk 0:00:07.4]} 52...
Rd2+ {[%clk 0:00:08.3]} 53. Ke3 {[%clk 0:00:06.7]} 53... g4 {[%clk 0:00:08.8]}
54. Nxc5 {[%clk 0:00:05.2]} 54... Rc2 {[%clk 0:00:07.4]} 55. Re6+ {[%clk
0:00:04.6]} 55... Kf7 {[%clk 0:00:08.1]} 56. Ne4 {[%clk 0:00:03.1]} 56... Rc1
{[%clk 0:00:06.5]} 57. Nd6+ {[%clk 0:00:03.3]} 57... Kg7 {[%clk 0:00:06.1]} 58.
Re7+ {[%clk 0:00:03.6]} 58... Kf8 {[%clk 0:00:05.7]} 59. Re6 {[%clk 0:00:03.3]}
59... Kg7 {[%clk 0:00:05.7]} 60. Re7+ {[%clk 0:00:03.2]} 60... Kf8 {[%clk
0:00:06]} 61. Rf7+ {[%clk 0:00:03.3]} 61... Kg8 {[%clk 0:00:05.8]} 62. e6 {[%clk
0:00:03.4]} 62... Re1+ {[%clk 0:00:04.9]} 63. Kf4 {[%clk 0:00:03.5]} 63... Nd4
{[%clk 0:00:03.3]} 64. Kxg4 {[%clk 0:00:02.6]} 64... Nxe6 {[%clk 0:00:02.8]} 65.
dxe6 {[%clk 0:00:02.3]} 65... Rxe6 {[%clk 0:00:03.7]} 66. Rd7 {[%clk 0:00:02.9]}
66... Rg6+ {[%clk 0:00:02.3]} 67. Kf5 {[%clk 0:00:02.7]} 67... Rh6 {[%clk
0:00:02.4]} 68. Ne4 {[%clk 0:00:02.7]} 68... Rxh2 {[%clk 0:00:02]} 69. Nf6+
{[%clk 0:00:02.6]} 69... Kf8 {[%clk 0:00:01.6]} 70. Nxh7+ {[%clk 0:00:02.9]}
70... Kg8 {[%clk 0:00:01.2]} 71. Nf6+ {[%clk 0:00:03.8]} 71... Kf8 {[%clk
0:00:01.5]} 72. Nh7+ {[%clk 0:00:04.1]} 72... Kg8 {[%clk 0:00:01.7]} 73. Ra7
{[%clk 0:00:04.6]} 73... Rf2+ {[%clk 0:00:01.9]} 74. Kg6 {[%clk 0:00:04.1]}
74... Rg2+ {[%clk 0:00:02.1]} 75. Ng5 {[%clk 0:00:04.6]} 75... Kf8 {[%clk
0:00:02.8]} 76. Rb7 {[%clk 0:00:04.2]} 76... Ke8 {[%clk 0:00:03.7]} 77. Kf6
{[%clk 0:00:04.2]} 77... Kd8 {[%clk 0:00:04.6]} 78. Ne6+ {[%clk 0:00:03.2]}
78... Kc8 {[%clk 0:00:05.5]} 79. Rc7+ {[%clk 0:00:03.7]} 79... Kb8 {[%clk
0:00:04.6]} 80. Rh7 {[%clk 0:00:04.3]} 80... Rf2+ {[%clk 0:00:04.7]} 81. Ke7
{[%clk 0:00:04.1]} 81... Kb7 {[%clk 0:00:04.2]} 82. Kd6+ {[%clk 0:00:03.5]}
82... Kb6 {[%clk 0:00:04]} 83. Rh1 {[%clk 0:00:03.1]} 83... Rf6 {[%clk
0:00:04.3]} 84. Kd5 {[%clk 0:00:02.7]} 84... Rf5+ {[%clk 0:00:03.1]} 85. Kd6
{[%clk 0:00:02.3]} 85... Rf6 {[%clk 0:00:03.5]} 86. Rb1+ {[%clk 0:00:02.6]}
86... Ka5 {[%clk 0:00:04]} 87. Kd5 {[%clk 0:00:03]} 87... Rf5+ {[%clk
0:00:04.3]} 88. Kc6 {[%clk 0:00:02.8]} 88... Ka4 {[%clk 0:00:04.3]} 89. Nc5+
{[%clk 0:00:02.3]} 89... Ka3 {[%clk 0:00:03.9]} 90. Kb5 {[%clk 0:00:02.5]} 90...
Ka2 {[%clk 0:00:03.7]} 91. Rb4 {[%clk 0:00:02.4]} 91... Ka3 {[%clk 0:00:03.4]}
0-1

[Event "*** Titled Tuesday Blitz"]
[Site "Chess.com"]
[Date "2020.04.07"]
[Round "2"]
[White "VALPARAISO37"]
[Black "Carnivoras"]
[Result "1/2-1/2"]
[WhiteElo "2334"]
[BlackElo "2617"]
[TimeControl "180+1"]
[EndTime "13:22:12 PDT"]
[Termination "Game drawn by repetition"]

1. d4 {[%clk 0:03:00.9]} 1... d5 {[%clk 0:03:00.3]} 2. c4 {[%clk 0:03:01.2]}
2... c6 {[%clk 0:03:00.7]} 3. Nc3 {[%clk 0:03:01.4]} 3... e6 {[%clk 0:03:01.2]}
4. e3 {[%clk 0:03:01.7]} 4... Nf6 {[%clk 0:02:59.7]} 5. Nf3 {[%clk 0:02:59.8]}
5... Nbd7 {[%clk 0:02:59.7]} 6. Bd3 {[%clk 0:02:58.2]} 6... Bd6 {[%clk
0:02:58.3]} 7. O-O {[%clk 0:02:57.3]} 7... O-O {[%clk 0:02:57.4]} 8. e4 {[%clk
0:02:55.4]} 8... dxc4 {[%clk 0:02:53.2]} 9. Bxc4 {[%clk 0:02:56]} 9... e5 {[%clk
0:02:53.8]} 10. a3 {[%clk 0:02:55.7]} 10... Qe7 {[%clk 0:02:50.6]} 11. Re1
{[%clk 0:02:52.7]} 11... b5 {[%clk 0:02:38.9]} 12. Ba2 {[%clk 0:02:52.1]} 12...
Bb7 {[%clk 0:02:38.6]} 13. dxe5 {[%clk 0:02:50.5]} 13... Nxe5 {[%clk 0:02:37.8]}
14. Nd4 {[%clk 0:02:50.8]} 14... Rad8 {[%clk 0:02:21]} 15. Nf5 {[%clk
0:02:48.7]} 15... Qc7 {[%clk 0:02:21]} 16. Bg5 {[%clk 0:02:37.1]} 16... Neg4
{[%clk 0:02:13.9]} 17. Nxd6 {[%clk 0:02:30.6]} 17... Rxd6 {[%clk 0:02:12.8]} 18.
Bf4 {[%clk 0:02:30.9]} 18... Rxd1 {[%clk 0:02:05.7]} 19. Bxc7 {[%clk 0:02:30.6]}
19... Rd2 {[%clk 0:02:06.1]} 20. e5 {[%clk 0:02:10.7]} 20... Nd5 {[%clk
0:01:43.7]} 21. Nxd5 {[%clk 0:02:06.5]} 21... cxd5 {[%clk 0:01:44.2]} 22. f3
{[%clk 0:02:00.8]} 22... Rc8 {[%clk 0:01:39.8]} 23. Ba5 {[%clk 0:01:49.5]} 23...
Rxb2 {[%clk 0:01:34.2]} 24. Bb1 {[%clk 0:01:21.1]} 24... Nh6 {[%clk 0:01:02.4]}
25. Bd3 {[%clk 0:01:05.1]} 25... g6 {[%clk 0:00:49.6]} 26. Rec1 {[%clk
0:01:00.7]} 26... Nf5 {[%clk 0:00:47.4]} 27. Rxc8+ {[%clk 0:00:58.8]} 27... Bxc8
{[%clk 0:00:47]} 28. Rc1 {[%clk 0:00:52.9]} 28... Be6 {[%clk 0:00:46.8]} 29.
Bxf5 {[%clk 0:00:50.1]} 29... Bxf5 {[%clk 0:00:45.3]} 30. g4 {[%clk 0:00:49.6]}
30... Be6 {[%clk 0:00:38.6]} 31. Rc7 {[%clk 0:00:41.9]} 31... d4 {[%clk
0:00:31.9]} 32. Rxa7 {[%clk 0:00:41.8]} 32... d3 {[%clk 0:00:32.1]} 33. Ra8+
{[%clk 0:00:40.6]} 33... Kg7 {[%clk 0:00:31.9]} 34. Rd8 {[%clk 0:00:37]} 34...
Bc4 {[%clk 0:00:29.8]} 35. h4 {[%clk 0:00:28.8]} 35... Rb3 {[%clk 0:00:24.8]}
36. Bb4 {[%clk 0:00:27.1]} 36... h5 {[%clk 0:00:15.5]} 37. Kf2 {[%clk
0:00:26.8]} 37... hxg4 {[%clk 0:00:15.6]} 38. fxg4 {[%clk 0:00:27]} 38... Rb2+
{[%clk 0:00:15.2]} 39. Kg3 {[%clk 0:00:27.1]} 39... d2 {[%clk 0:00:11.9]} 40.
Rxd2 {[%clk 0:00:25.6]} 40... Rxd2 {[%clk 0:00:11.7]} 41. Bxd2 {[%clk
0:00:25.7]} 41... Be6 {[%clk 0:00:07.5]} 42. Bc3 {[%clk 0:00:24.6]} 42... Kh7
{[%clk 0:00:07.2]} 43. Kf4 {[%clk 0:00:24.3]} 43... Bc8 {[%clk 0:00:07.1]} 44.
Kg5 {[%clk 0:00:21.2]} 44... Be6 {[%clk 0:00:08]} 45. Bd4 {[%clk 0:00:20.5]}
45... Kg8 {[%clk 0:00:07.1]} 46. h5 {[%clk 0:00:19.5]} 46... gxh5 {[%clk
0:00:07.1]} 47. Kxh5 {[%clk 0:00:19.8]} 47... Kh7 {[%clk 0:00:07]} 48. Kg5
{[%clk 0:00:20]} 48... Kg7 {[%clk 0:00:06.7]} 49. Bc5 {[%clk 0:00:19.7]} 49...
Kh7 {[%clk 0:00:06.1]} 50. Bf8 {[%clk 0:00:19.1]} 50... Kg8 {[%clk 0:00:05.8]}
51. Be7 {[%clk 0:00:19.5]} 51... Kg7 {[%clk 0:00:05.2]} 52. Bf6+ {[%clk
0:00:20.1]} 52... Kh7 {[%clk 0:00:05.6]} 53. Kh5 {[%clk 0:00:20.3]} 53... Bc8
{[%clk 0:00:05.2]} 54. Kg5 {[%clk 0:00:19.8]} 54... Be6 {[%clk 0:00:06.1]} 55.
Kf4 {[%clk 0:00:20.2]} 55... Bd7 {[%clk 0:00:05.8]} 56. Bh4 {[%clk 0:00:20.4]}
56... Kg6 {[%clk 0:00:05.7]} 57. Be1 {[%clk 0:00:19.8]} 57... Be6 {[%clk
0:00:06.1]} 58. Bc3 {[%clk 0:00:19.7]} 58... Bc4 {[%clk 0:00:06.1]} 59. Bd2
{[%clk 0:00:19]} 59... Be6 {[%clk 0:00:06.7]} 60. Kg3 {[%clk 0:00:18.1]} 60...
Bd7 {[%clk 0:00:07.2]} 61. Bb4 {[%clk 0:00:18.1]} 61... Be6 {[%clk 0:00:07.6]}
62. Be7 {[%clk 0:00:18.2]} 62... Bd7 {[%clk 0:00:08]} 63. Kf4 {[%clk 0:00:18.6]}
63... Be6 {[%clk 0:00:08.5]} 64. Bf6 {[%clk 0:00:19]} 64... Bd7 {[%clk 0:00:09]}
65. Bd8 {[%clk 0:00:19.7]} 65... Be6 {[%clk 0:00:09.5]} 66. Bb6 {[%clk
0:00:20.4]} 66... Bd7 {[%clk 0:00:10]} 67. Bf2 {[%clk 0:00:21.1]} 67... Be6
{[%clk 0:00:10.6]} 68. Bh4 {[%clk 0:00:21.7]} 68... Bd7 {[%clk 0:00:11.2]} 69.
Be7 {[%clk 0:00:22.3]} 69... Be6 {[%clk 0:00:11.8]} 70. Bb4 {[%clk 0:00:23.1]}
70... Bd7 {[%clk 0:00:12.5]} 71. Bc3 {[%clk 0:00:23.8]} 71... Be6 {[%clk
0:00:12.9]} 72. Bd2 {[%clk 0:00:24.5]} 72... Bd7 {[%clk 0:00:13.4]} 73. Bc3
{[%clk 0:00:25.2]} 73... Be6 {[%clk 0:00:13.9]} 74. Ba5 {[%clk 0:00:26]} 74...
Bd7 {[%clk 0:00:14.3]} 75. Bd8 {[%clk 0:00:26.8]} 75... Be6 {[%clk 0:00:14.6]}
76. Bf6 {[%clk 0:00:27.5]} 76... Bd7 {[%clk 0:00:15.1]} 77. g5 {[%clk
0:00:27.9]} 77... Be6 {[%clk 0:00:15.6]} 78. Ke3 {[%clk 0:00:28.3]} 78... Bd7
{[%clk 0:00:16]} 79. Kd4 {[%clk 0:00:28.7]} 79... Kf5 {[%clk 0:00:13.5]} 80. Kd5
{[%clk 0:00:29.2]} 80... Be8 {[%clk 0:00:10.4]} 81. Kd6 {[%clk 0:00:29.3]} 81...
Kg6 {[%clk 0:00:09.9]} 82. Be7 {[%clk 0:00:26.4]} 82... Kf5 {[%clk 0:00:08.2]}
83. Bf6 {[%clk 0:00:25.8]} 83... Kg6 {[%clk 0:00:08.3]} 84. e6 {[%clk
0:00:26.4]} 84... fxe6 {[%clk 0:00:08.2]} 85. Kxe6 {[%clk 0:00:26.9]} 85... Bf7+
{[%clk 0:00:08.6]} 86. Kd6 {[%clk 0:00:27]} 86... Bb3 {[%clk 0:00:08.5]} 87. Kc5
{[%clk 0:00:27.2]} 87... Ba4 {[%clk 0:00:09.4]} 88. Kb4 {[%clk 0:00:26.6]} 88...
Kf7 {[%clk 0:00:09.9]} 89. Kc3 {[%clk 0:00:26.9]} 89... Kg6 {[%clk 0:00:10.8]}
90. Kd4 {[%clk 0:00:27.5]} 90... Kf7 {[%clk 0:00:11.7]} 91. Ke5 {[%clk 0:00:28]}
91... Kg6 {[%clk 0:00:12.6]} 92. Ke6 {[%clk 0:00:28.4]} 92... Bb3+ {[%clk
0:00:12.6]} 93. Ke7 {[%clk 0:00:28.4]} 93... Ba4 {[%clk 0:00:13.5]} 94. Kf8
{[%clk 0:00:28.5]} 94... Bb3 {[%clk 0:00:13.9]} 95. Be7 {[%clk 0:00:27.4]} 95...
Ba4 {[%clk 0:00:14.8]} 96. Bf6 {[%clk 0:00:27.1]} 96... Bb3 {[%clk 0:00:15.1]}
97. Ke7 {[%clk 0:00:27.4]} 97... Ba4 {[%clk 0:00:16]} 98. Ke6 {[%clk 0:00:27.9]}
98... Bb3+ {[%clk 0:00:16.3]} 99. Ke5 {[%clk 0:00:28.5]} 99... Ba4 {[%clk
0:00:17.2]} 100. Kf4 {[%clk 0:00:29.2]} 100... Bb3 {[%clk 0:00:17.5]} 101. Kg4
{[%clk 0:00:29.6]} 101... Ba4 {[%clk 0:00:18.4]} 102. Kh4 {[%clk 0:00:29.9]}
102... Bb3 {[%clk 0:00:18.7]} 103. Kg3 {[%clk 0:00:30.6]} 103... Ba4 {[%clk
0:00:19.6]} 104. Kf4 {[%clk 0:00:31.3]} 104... Bb3 {[%clk 0:00:19.9]} 105. Ke5
{[%clk 0:00:32]} 105... Ba4 {[%clk 0:00:20.8]} 1/2-1/2

[Event "*** Titled Tuesday Blitz"]
[Site "Chess.com"]
[Date "2020.04.07"]
[Round "3"]
[White "warmoatmeal"]
[Black "VinzentSpitzl"]
[Result "1/2-1/2"]
[WhiteElo "1904"]
[BlackElo "2358"]
[TimeControl "180+1"]
[EndTime "13:24:26 PDT"]
[Termination "Game drawn by agreement"]

1. Nf3 {[%clk 0:03:00.9]} 1... d5 {[%clk 0:02:58.6]} 2. d4 {[%clk 0:02:59.7]}
2... Nf6 {[%clk 0:02:58.6]} 3. Bg5 {[%clk 0:02:59.1]} 3... e6 {[%clk 0:02:57.8]}
4. e3 {[%clk 0:02:59.3]} 4... Be7 {[%clk 0:02:58]} 5. Nbd2 {[%clk 0:02:59]} 5...
h6 {[%clk 0:02:58.5]} 6. Bh4 {[%clk 0:02:58.5]} 6... Nbd7 {[%clk 0:02:58.1]} 7.
Bd3 {[%clk 0:02:57]} 7... c5 {[%clk 0:02:57.1]} 8. c3 {[%clk 0:02:57.1]} 8... b6
{[%clk 0:02:54.6]} 9. O-O {[%clk 0:02:56.6]} 9... Bb7 {[%clk 0:02:54.8]} 10. Ne5
{[%clk 0:02:57.1]} 10... Ne4 {[%clk 0:02:50.1]} 11. Bxe7 {[%clk 0:02:55.7]}
11... Qxe7 {[%clk 0:02:49.7]} 12. f4 {[%clk 0:02:55.4]} 12... O-O {[%clk
0:02:25.2]} 13. Qe2 {[%clk 0:02:52.3]} 13... Nxd2 {[%clk 0:02:18.1]} 14. Qxd2
{[%clk 0:02:51.7]} 14... Nxe5 {[%clk 0:02:18.7]} 15. fxe5 {[%clk 0:02:51.5]}
15... f6 {[%clk 0:02:16.9]} 16. exf6 {[%clk 0:02:51.3]} 16... Rxf6 {[%clk
0:02:16.7]} 17. Rxf6 {[%clk 0:02:50.3]} 17... Qxf6 {[%clk 0:02:15.5]} 18. Rf1
{[%clk 0:02:50.2]} 18... Qe7 {[%clk 0:02:15.7]} 19. Qf2 {[%clk 0:02:43.3]}
1/2-1/2

[Event "*** Titled Tuesday Blitz"]
[Site "Chess.com"]
[Date "2020.04.07"]
[Round "3"]
[White "PetrolulSah"]
[Black "mokerslag"]
[Result "0-1"]
[WhiteElo "2234"]
[BlackElo "2441"]
[TimeControl "180+1"]
[EndTime "13:24:37 PDT"]
[Termination "mokerslag won by resignation"]

1. d4 {[%clk 0:03:00.9]} 1... Nf6 {[%clk 0:02:57.9]} 2. c4 {[%clk 0:03:00.4]}
2... e5 {[%clk 0:02:55.6]} 3. dxe5 {[%clk 0:02:58.2]} 3... Ng4 {[%clk 0:02:56]}
4. Bf4 {[%clk 0:02:56.5]} 4... Nc6 {[%clk 0:02:55.6]} 5. Nf3 {[%clk 0:02:56.4]}
5... Bb4+ {[%clk 0:02:55.7]} 6. Nbd2 {[%clk 0:02:55.5]} 6... Qe7 {[%clk
0:02:54.3]} 7. e3 {[%clk 0:02:54.1]} 7... Ngxe5 {[%clk 0:02:53.1]} 8. Be2 {[%clk
0:02:53.6]} 8... d6 {[%clk 0:02:42.2]} 9. O-O {[%clk 0:02:53.3]} 9... a5 {[%clk
0:02:41.8]} 10. Nb3 {[%clk 0:02:47.2]} 10... a4 {[%clk 0:02:41.4]} 11. Nbd4
{[%clk 0:02:47.2]} 11... O-O {[%clk 0:02:38.3]} 12. Nxc6 {[%clk 0:02:46.4]}
12... bxc6 {[%clk 0:02:35.4]} 13. Nxe5 {[%clk 0:02:40.6]} 13... dxe5 {[%clk
0:02:36.3]} 14. Bg3 {[%clk 0:02:40.6]} 14... Bf5 {[%clk 0:02:22.8]} 15. f3
{[%clk 0:02:31.5]} 15... Rfd8 {[%clk 0:02:20]} 16. Qc1 {[%clk 0:02:31.4]} 16...
Bd2 {[%clk 0:02:19.2]} 0-1

[Event "*** Titled Tuesday Blitz"]
[Site "Chess.com"]
[Date "2020.04.07"]
[Round "3"]
[White "GreatDamnedRedSpot"]
[Black "omidnoroozi21"]
[Result "1-0"]
[WhiteElo "2303"]
[BlackElo "2563"]
[TimeControl "180+1"]
[EndTime "13:24:38 PDT"]
[Termination "GreatDamnedRedSpot won by resignation"]

1. e4 {[%clk 0:03:00.9]} 1... c5 {[%clk 0:02:59.5]} 2. Nf3 {[%clk 0:03:00.3]}
2... d6 {[%clk 0:03:00]} 3. d4 {[%clk 0:02:59.7]} 3... cxd4 {[%clk 0:03:00.9]}
4. Qxd4 {[%clk 0:02:59.8]} 4... Nc6 {[%clk 0:03:00]} 5. Bb5 {[%clk 0:02:59.7]}
5... Bd7 {[%clk 0:03:00.9]} 6. Bxc6 {[%clk 0:02:59.9]} 6... Bxc6 {[%clk
0:03:01.8]} 7. Nc3 {[%clk 0:02:59.9]} 7... Nf6 {[%clk 0:03:02.2]} 8. Bg5 {[%clk
0:03:00]} 8... e6 {[%clk 0:03:02.6]} 9. Bxf6 {[%clk 0:03:00.1]} 9... Qxf6 {[%clk
0:03:02.4]} 10. O-O-O {[%clk 0:03:00.5]} 10... Qxd4 {[%clk 0:02:58.5]} 11. Nxd4
{[%clk 0:03:00.2]} 11... Bd7 {[%clk 0:02:59.4]} 12. Ndb5 {[%clk 0:02:59.7]}
12... Bxb5 {[%clk 0:02:58.6]} 13. Nxb5 {[%clk 0:02:58.9]} 13... Rd8 {[%clk
0:02:56.7]} 14. Nxa7 {[%clk 0:02:56.7]} 14... Ra8 {[%clk 0:02:56.8]} 15. Nb5
{[%clk 0:02:57.1]} 15... Rxa2 {[%clk 0:02:56.9]} 16. Kb1 {[%clk 0:02:57.4]}
16... Ra5 {[%clk 0:02:57.1]} 17. Nxd6+ {[%clk 0:02:55]} 17... Bxd6 {[%clk
0:02:57.1]} 18. Rxd6 {[%clk 0:02:54.1]} 18... Ke7 {[%clk 0:02:58]} 19. Rhd1
{[%clk 0:02:50.4]} 19... Rha8 {[%clk 0:02:57.9]} 20. Rd7+ {[%clk 0:02:47.6]}
20... Kf6 {[%clk 0:02:57.5]} 21. c3 {[%clk 0:02:41]} 21... b5 {[%clk 0:02:54.9]}
22. Rb7 {[%clk 0:02:34.8]} 22... R8a7 {[%clk 0:02:51.1]} 23. Rdd7 {[%clk
0:02:30.6]} 23... Rxb7 {[%clk 0:02:50.6]} 24. Rxb7 {[%clk 0:02:30.5]} 24... g5
{[%clk 0:02:51.1]} 25. f3 {[%clk 0:02:25.2]} 25... h6 {[%clk 0:02:46.6]} 26. b4
{[%clk 0:02:17.2]} 26... Ra8 {[%clk 0:02:46.6]} 27. Rxb5 {[%clk 0:02:15.6]}
27... Rd8 {[%clk 0:02:47.5]} 28. Kc2 {[%clk 0:02:15.2]} 1-0

[Event "*** Titled Tuesday Blitz"]
[Site "Chess.com"]
[Date "2020.04.07"]
[Round "3"]
[White "plumalka"]
[Black "Rumpel-VK"]
[Result "0-1"]
[WhiteElo "2387"]
[BlackElo "2627"]
[TimeControl "180+1"]
[EndTime "13:25:05 PDT"]
[Termination "Rumpel-VK won by resignation"]

1. e4 {[%clk 0:03:00.9]} 1... c5 {[%clk 0:02:47.3]} 2. Nf3 {[%clk 0:03:00.8]}
2... Nc6 {[%clk 0:02:46]} 3. d4 {[%clk 0:03:01.1]} 3... cxd4 {[%clk 0:02:45.8]}
4. Nxd4 {[%clk 0:03:02]} 4... e5 {[%clk 0:02:45.8]} 5. Nb5 {[%clk 0:03:01.9]}
5... a6 {[%clk 0:02:46.4]} 6. Nd6+ {[%clk 0:03:01.5]} 6... Bxd6 {[%clk 0:02:47]}
7. Qxd6 {[%clk 0:03:02.3]} 7... Qe7 {[%clk 0:02:47.7]} 8. Qd1 {[%clk 0:02:57.8]}
8... Nf6 {[%clk 0:02:48.3]} 9. Nc3 {[%clk 0:02:57]} 9... Nd4 {[%clk 0:02:49]}
10. Be3 {[%clk 0:02:53.1]} 10... O-O {[%clk 0:02:49.2]} 11. Bxd4 {[%clk
0:02:47.1]} 11... d5 {[%clk 0:02:49.8]} 12. Be3 {[%clk 0:02:37.9]} 12... d4
{[%clk 0:02:49.6]} 13. Bxd4 {[%clk 0:02:38]} 13... Rd8 {[%clk 0:02:49.7]} 14.
Qf3 {[%clk 0:02:34]} 14... exd4 {[%clk 0:02:47.9]} 15. Ne2 {[%clk 0:02:20.2]}
15... Qb4+ {[%clk 0:02:47.1]} 16. c3 {[%clk 0:01:58.4]} 16... Qxb2 {[%clk
0:02:46.9]} 17. Rd1 {[%clk 0:01:56]} 17... d3 {[%clk 0:02:47.3]} 18. e5 {[%clk
0:01:38.4]} 18... d2+ {[%clk 0:02:45.6]} 0-1

[Event "*** Titled Tuesday Blitz"]
[Site "Chess.com"]
[Date "2020.04.07"]
[Round "3"]
[White "tacticthunder"]
[Black "tonyq11"]
[Result "1-0"]
[WhiteElo "2523"]
[BlackElo "2273"]
[TimeControl "180+1"]
[EndTime "13:25:18 PDT"]
[Termination "tacticthunder won by resignation"]

1. e4 {[%clk 0:02:59.9]} 1... c5 {[%clk 0:02:59.7]} 2. Nf3 {[%clk 0:03:00.1]}
2... e6 {[%clk 0:02:59.9]} 3. d4 {[%clk 0:03:01]} 3... cxd4 {[%clk 0:03:00.7]}
4. Nxd4 {[%clk 0:03:01.9]} 4... Nc6 {[%clk 0:03:01.4]} 5. Nc3 {[%clk 0:03:02.5]}
5... Qc7 {[%clk 0:03:01.1]} 6. Qd3 {[%clk 0:03:02]} 6... Nf6 {[%clk 0:02:58.3]}
7. Ndb5 {[%clk 0:03:01.9]} 7... Qb8 {[%clk 0:02:57]} 8. Qg3 {[%clk 0:03:02.1]}
8... Qxg3 {[%clk 0:02:47.8]} 9. hxg3 {[%clk 0:03:03]} 9... Kd8 {[%clk
0:02:41.1]} 10. Bf4 {[%clk 0:03:03]} 10... e5 {[%clk 0:02:40.9]} 11. Bg5 {[%clk
0:03:02.8]} 11... a6 {[%clk 0:02:41.2]} 12. Na3 {[%clk 0:03:03.2]} 12... b5
{[%clk 0:02:35.2]} 13. Nd5 {[%clk 0:03:02.7]} 13... Be7 {[%clk 0:02:34]} 14.
Nxe7 {[%clk 0:03:01.7]} 14... Kxe7 {[%clk 0:02:34.2]} 15. c4 {[%clk 0:03:01.4]}
15... Nd4 {[%clk 0:02:31.9]} 16. O-O-O {[%clk 0:02:57.8]} 16... Bb7 {[%clk
0:02:24.9]} 17. f3 {[%clk 0:02:57.1]} 17... Bc6 {[%clk 0:02:22.7]} 18. Kb1
{[%clk 0:02:55.7]} 18... h6 {[%clk 0:02:13.1]} 19. Be3 {[%clk 0:02:53.3]} 19...
b4 {[%clk 0:01:48.7]} 20. Bxd4 {[%clk 0:02:52.1]} 20... bxa3 {[%clk 0:01:43.4]}
21. Bc5+ {[%clk 0:02:50.5]} 21... Ke6 {[%clk 0:01:35]} 22. Bxa3 {[%clk
0:02:51.4]} 22... Rhb8 {[%clk 0:01:33.3]} 23. Rd6+ {[%clk 0:02:48]} 1-0